bitfinex/quotes_BTCUSD_20240918
["timestamp","ask_amount","ask_price","bid_price","bid_amount"]
[1726659819718,0.6749815,60028.0,60027.0,0.001822]
[1726659820400,0.70112328,60028.0,60027.0,0.001822]
[1726659822482,0.8505683,60028.0,60027.0,0.001822]
[1726659822932,0.70112328,60028.0,60027.0,0.001822]
[1726659824311,0.6749815,60028.0,60027.0,0.001822]
[1726659827885,0.70112303,60028.0,60027.0,0.001822]
[1726659828106,0.86964635,60028.0,60027.0,0.001822]
[1726659828343,0.84350482,60028.0,60027.0,0.001822]
[1726659828570,0.6749815,60028.0,60027.0,0.001822]
[1726659830604,0.70112308,60028.0,60027.0,0.001822]
[1726659831185,0.3869395,60028.0,60027.0,0.001822]
[1726659835139,0.4796602,60028.0,60027.0,0.001822]
[1726659835364,0.3869395,60028.0,60027.0,0.001822]
[1726659840069,0.3885815,60028.0,60027.0,0.001822]
[1726659840506,0.3885815,60028.0,60009.0,0.10642077]
[1726659840507,0.1,60027.0,60009.0,0.10842077]
[1726659840727,0.15090243,60015.0,60009.0,0.10642077]
[1726659840946,0.18605367,60014.0,60009.0,0.10642077]
[1726659841190,0.023,60012.0,60009.0,0.10642077]
[1726659841415,0.16305367,60011.0,60009.0,0.10642077]
[1726659841862,0.023,60010.0,60009.0,0.10642077]
[1726659842083,0.16305367,60010.0,60009.0,0.10642077]
[1726659842303,0.18605367,60010.0,60009.0,0.0765]
[1726659842522,0.18605367,60010.0,60009.0,0.10642077]
[1726659843243,0.21219654,60010.0,60009.0,0.10742077]
[1726659843715,0.21219654,60010.0,60009.0,0.19692077]
[1726659843943,0.19105367,60010.0,60009.0,0.19692077]
[1726659844734,0.19105367,60010.0,60009.0,0.19892077]
[1726659847087,0.21719652,60010.0,60009.0,0.19892077]
[1726659851740,0.21719652,60010.0,60009.0,0.19974177]
[1726659852703,0.21719652,60010.0,60009.0,0.3006276]
[1726659852952,0.1251504,60016.0,60009.0,0.3006276]
[1726659852953,0.05006016,60021.0,60017.0,0.02992077]
[1726659853209,0.10012032,60025.0,60021.0,0.093]
[1726659853210,0.05006016,60024.0,60021.0,0.093]
[1726659853482,0.10012032,60027.0,60018.0,0.03]
[1726659853483,0.05006016,60027.0,60026.0,0.002]
[1726659853723,0.07673224,60028.0,60027.0,0.002]
[1726659853724,0.001642,60028.0,60027.0,0.002]
[1726659855143,0.16469567,60028.0,60027.0,0.002]
[1726659889621,0.16469567,60028.0,60025.0,0.02992077]
[1726659889829,0.16305367,60027.0,60025.0,0.02992077]
[1726659891574,0.16305367,60027.0,60025.0,0.03192077]
[1726659894020,0.16705367,60027.0,60025.0,0.03192077]
[1726659896505,0.16305367,60027.0,60025.0,0.03192077]
[1726659896719,0.16705367,60027.0,60025.0,0.03192077]
[1726659897161,0.18919146,60027.0,60025.0,0.03192077]
[1726659897382,0.24315068,60027.0,60025.0,0.03192077]
[1726659897820,0.23915068,60027.0,60025.0,0.03192077]
[1726659898037,0.24315068,60027.0,60025.0,0.03192077]
[1726659898254,0.21701289,60027.0,60026.0,0.002]
[1726659898505,0.16305367,60027.0,60026.0,0.002]
[1726659899374,0.16305367,60027.0,60025.0,0.03192077]
[1726659899610,0.21301289,60027.0,60025.0,0.03192077]
[1726659899836,0.21701289,60027.0,60025.0,0.03192077]
[1726659900305,0.023,60026.0,60022.0,0.02992077]
[1726659900538,0.023,60026.0,60016.0,0.02992077]
[1726659900539,0.10088583,60023.0,60016.0,0.02992077]
[1726659900793,0.16305367,60022.0,60020.0,0.02992077]
[1726659901030,0.16305367,60022.0,60021.0,0.002]
[1726659901283,0.16305367,60022.0,60020.0,0.02992077]
[1726659903833,0.16305367,60022.0,60020.0,0.03192077]
[1726659904046,0.18919252,60022.0,60020.0,0.02992077]
[1726659904471,0.19319252,60022.0,60020.0,0.02992077]
[1726659906263,0.18919252,60022.0,60020.0,0.02992077]
[1726659906701,0.19319252,60022.0,60020.0,0.02992077]
[1726659908197,0.19319252,60022.0,60021.0,0.002]
[1726659909547,0.18919252,60022.0,60021.0,0.002]
[1726659910006,0.18919252,60022.0,60020.0,0.02992077]
[1726659910462,0.18919252,60022.0,60021.0,0.002]
[1726659911378,0.19019252,60022.0,60021.0,0.002]
[1726659911855,0.16405367,60022.0,60021.0,0.002]
[1726659912735,0.16305367,60022.0,60021.0,0.002]
[1726659913936,0.16405367,60022.0,60020.0,0.03192077]
[1726659914838,0.16569567,60022.0,60021.0,0.002]
[1726659916611,0.16469567,60022.0,60021.0,0.002]
[1726659916826,0.16569567,60022.0,60021.0,0.002]
[1726659917266,0.16469567,60022.0,60021.0,0.002]
[1726659917750,0.16569567,60022.0,60021.0,0.002]
[1726659922365,0.002642,60022.0,60021.0,0.002]
[1726659923874,0.001642,60022.0,60021.0,0.002]
[1726659924379,0.02878133,60022.0,60021.0,0.002]
[1726659924863,0.02778133,60022.0,60021.0,0.2702066]
[1726659925109,0.02778133,60022.0,60021.0,0.26752077]
[1726659925350,0.001642,60022.0,60021.0,0.26752077]
[1726659926499,0.001642,60022.0,60021.0,0.26552077]
[1726659926945,0.001642,60022.0,60021.0,0.26752077]
[1726659927168,0.001642,60022.0,60021.0,0.26552077]
[1726659927603,0.001642,60022.0,60021.0,0.26852077]
[1726659929722,0.001642,60022.0,60021.0,0.03492077]
[1726659930417,0.001642,60022.0,60021.0,0.03192077]
[1726659930639,0.001642,60022.0,60021.0,0.03792077]
[1726659930860,0.001642,60022.0,60021.0,0.03192077]
[1726659931312,0.001642,60022.0,60021.0,0.03592077]
[1726659931540,0.001642,60022.0,60021.0,0.03192077]
[1726659933448,0.001642,60022.0,60020.0,0.06]
[1726659933449,0.16469567,60022.0,60020.0,0.002]
[1726659933687,0.16305367,60021.0,60020.0,0.002]
[1726659933926,0.17734512,60021.0,60020.0,0.02992077]
[1726659936226,0.17734512,60021.0,60020.0,0.03192077]
[1726659937440,0.17934512,60021.0,60020.0,0.03192077]
[1726659937665,0.17734512,60021.0,60020.0,0.03192077]
[1726659938136,0.17934512,60021.0,60020.0,0.03192077]
[1726659940207,0.01629145,60021.0,60020.0,0.16082077]
[1726659940426,0.01429145,60021.0,60020.0,0.19082077]
[1726659940665,0.001642,60022.0,60021.0,0.002]
[1726659940931,0.001642,60022.0,60021.0,0.06192077]
[1726659942392,0.001642,60022.0,60021.0,0.06592077]
[1726659943864,0.001642,60022.0,60021.0,0.06192077]
[1726659944096,0.001642,60022.0,60021.0,0.06492077]
[1726659944338,0.001642,60022.0,60021.0,0.06192077]
[1726659944823,0.001642,60022.0,60021.0,0.06692077]
[1726659947232,0.001642,60022.0,60021.0,0.06192077]
[1726659947905,0.001642,60022.0,60021.0,0.06592077]
[1726659948121,0.001642,60022.0,60021.0,0.06192077]
[1726659951097,0.01594323,60022.0,60021.0,0.06192077]
[1726659951306,0.001642,60022.0,60021.0,0.06192077]
[1726659951792,0.005642,60022.0,60021.0,0.06192077]
[1726659955269,0.001642,60022.0,60021.0,0.06192077]
[1726659955496,0.001642,60022.0,60021.0,0.06592077]
[1726659955745,0.16469567,60022.0,60021.0,0.004]
[1726659956017,0.3866815,60022.0,60021.0,0.004]
[1726659956275,0.40098615,60022.0,60021.0,0.004]
[1726659956960,0.40098615,60022.0,60016.0,0.02992077]
[1726659957192,0.16305367,60021.0,60016.0,0.02992077]
[1726659957688,0.023,60018.0,60014.0,0.002]
[1726659957936,0.16305367,60017.0,60014.0,0.002]
[1726659958956,0.16305367,60017.0,60014.0,0.03192077]
[1726659959200,0.16305367,60017.0,60015.0,0.02992077]
[1726659959445,0.16305367,60017.0,60016.0,0.03192077]
[1726659959957,0.16988353,60017.0,60016.0,0.03192077]
[1726659960685,0.00682986,60017.0,60016.0,0.1328066]
[1726659961163,0.001642,60022.0,60021.0,0.032]
[1726659961388,0.001642,60022.0,60021.0,0.13288583]
[1726659962081,0.001642,60022.0,60021.0,0.032]
[1726659964276,0.001642,60022.0,60021.0,0.035]
[1726659964529,0.001642,60022.0,60021.0,0.032]
[1726659965020,0.001642,60022.0,60021.0,0.035]
[1726659965273,0.001642,60022.0,60021.0,0.032]
[1726659965503,0.001642,60022.0,60021.0,0.035]
[1726659965732,0.001642,60022.0,60021.0,0.13588583]
[1726659965962,0.001642,60022.0,60021.0,0.1928066]
[1726659966198,0.001642,60022.0,60021.0,0.1958066]
[1726659968059,0.001642,60022.0,60021.0,0.1928066]
[1726659968508,0.001642,60022.0,60021.0,0.1958066]
[1726659968750,0.001642,60022.0,60021.0,0.1928066]
[1726659968974,0.001642,60022.0,60021.0,0.09192077]
[1726659969197,0.001642,60022.0,60021.0,0.09592077]
[1726659969413,0.001642,60022.0,60021.0,0.09192077]
[1726659970935,0.001642,60022.0,60021.0,0.2861066]
[1726659971171,0.001642,60022.0,60021.0,0.29343828]
[1726659971917,0.001642,60022.0,60021.0,0.2901066]
[1726659973396,0.001642,60022.0,60021.0,0.29343828]
[1726659978287,0.001642,60022.0,60021.0,0.28943828]
[1726659978531,0.001642,60022.0,60021.0,0.35036992]
[1726659978772,0.001642,60022.0,60021.0,0.37533574]
[1726659979009,0.001642,60022.0,60021.0,0.30043828]
[1726659979803,0.001642,60022.0,60021.0,0.35034367]
[1726659982497,0.001642,60022.0,60021.0,0.28943828]
[1726659983011,0.001642,60022.0,60021.0,0.2861066]
[1726659983301,0.001642,60022.0,60021.0,0.34801199]
[1726659983581,0.001642,60022.0,60021.0,0.2981066]
[1726659983844,0.001642,60022.0,60021.0,0.96935437]
[1726659984097,0.001642,60022.0,60021.0,0.62718611]
[1726659984314,0.001642,60022.0,60021.0,0.8525502]
[1726659984548,0.001642,60022.0,60021.0,0.72783109]
[1726659984772,0.001642,60022.0,60021.0,0.8525502]
[1726659984997,0.001642,60022.0,60021.0,0.8405502]
[1726659985450,0.001642,60022.0,60021.0,0.72983109]
[1726659986122,0.001642,60022.0,60021.0,0.71583109]
[1726659986569,0.001642,60022.0,60021.0,0.73183109]
[1726659986840,0.001642,60022.0,60021.0,0.88088476]
[1726659987586,0.001642,60022.0,60021.0,0.98060681]
[1726659988591,0.001642,60022.0,60021.0,1.02800681]
[1726659988844,0.001642,60022.0,60021.0,0.91428476]
[1726659989096,0.001642,60022.0,60021.0,0.67716027]
[1726659989345,0.001642,60022.0,60021.0,0.93067808]
[1726659989573,0.001642,60022.0,60021.0,0.91667808]
[1726659989790,0.001642,60022.0,60021.0,0.93067808]
[1726659990018,0.001642,60022.0,60021.0,0.91667808]
[1726659990951,0.001642,60022.0,60021.0,1.04126114]
[1726659991664,0.001642,60022.0,60021.0,1.05526114]
[1726659991886,0.001642,60022.0,60021.0,1.05326114]
[1726659992135,0.001642,60022.0,60021.0,1.03926114]
[1726659992376,0.001642,60022.0,60021.0,1.05326114]
[1726659993126,0.001642,60022.0,60021.0,1.03926114]
[1726659993565,0.001642,60022.0,60021.0,0.91467808]
[1726659993791,0.001642,60022.0,60021.0,1.01435563]
[1726659994014,0.001642,60022.0,60021.0,1.02831712]
[1726659995393,0.001642,60022.0,60021.0,1.01431712]
[1726659995640,0.001642,60022.0,60021.0,1.02831712]
[1726659996125,0.001642,60022.0,60021.0,1.01431712]
[1726659996360,0.001642,60022.0,60021.0,1.03031712]
[1726659996845,0.001642,60022.0,60021.0,1.05523669]
[1726659997085,0.001642,60022.0,60021.0,1.04123669]
[1726659999181,0.001642,60022.0,60021.0,1.05523669]
[1726659999407,0.001642,60022.0,60021.0,1.04123669]
[1726659999850,0.001642,60022.0,60021.0,1.05523669]
[1726660002396,0.001642,60022.0,60021.0,0.93063885]
[1726660002629,0.001642,60022.0,60021.0,1.05518207]
[1726660003362,0.001642,60022.0,60021.0,0.93063885]
[1726660003616,0.001642,60022.0,60021.0,0.82975302]
[1726660003833,0.001642,60022.0,60021.0,0.93063885]
[1726660004561,0.001642,60022.0,60021.0,1.0551982]
[1726660005902,0.001642,60022.0,60021.0,0.93063885]
[1726660011629,0.001642,60022.0,60021.0,1.08015626]
[1726660012511,0.001642,60028.0,60027.0,0.28522077]
[1726660012727,0.001642,60028.0,60027.0,0.80596978]
[1726660012941,0.001642,60028.0,60027.0,0.80796978]
[1726660013586,0.001642,60028.0,60027.0,0.92987478]
[1726660014100,0.001642,60028.0,60027.0,0.80522528]
[1726660014325,0.001642,60028.0,60027.0,0.93187478]
[1726660014549,0.001642,60028.0,60027.0,0.80722528]
[1726660015670,0.001642,60028.0,60027.0,0.82122528]
[1726660017531,0.001642,60028.0,60027.0,0.83131453]
[1726660018424,0.564542,60044.0,60043.0,0.002]
[1726660018650,0.0957,60044.0,60043.0,0.1628066]
[1726660018925,0.1079469,60044.0,60043.0,0.1628066]
[1726660019821,0.1089469,60044.0,60043.0,0.1628066]
[1726660020282,0.1079469,60044.0,60043.0,0.1628066]
[1726660020538,0.0122469,60044.0,60043.0,0.1928066]
[1726660020766,0.0122469,60044.0,60043.0,0.55699091]
[1726660020767,0.0045186,60044.0,60043.0,0.55699091]
[1726660020999,0.000821,60060.0,60048.0,0.09392077]
[1726660021256,0.000821,60060.0,60048.0,0.45918992]
[1726660021503,0.000821,60060.0,60048.0,0.84170724]
[1726660021727,0.000821,60060.0,60048.0,0.71588818]
[1726660023327,0.000821,60060.0,60059.0,0.1928066]
[1726660023577,0.000821,60060.0,60059.0,0.2928066]
[1726660023806,0.000821,60060.0,60059.0,0.29613609]
[1726660025210,0.000821,60060.0,60059.0,0.34591518]
[1726660025700,0.000821,60060.0,60059.0,0.50896885]
[1726660026148,0.000821,60060.0,60059.0,0.56155014]
[1726660026396,0.000821,60060.0,60059.0,0.51977105]
[1726660026911,0.000821,60060.0,60059.0,0.52177105]
[1726660027135,0.000821,60060.0,60059.0,0.52954649]
[1726660028044,0.000821,60060.0,60059.0,0.53154649]
[1726660028288,0.000821,60060.0,60059.0,0.52954649]
[1726660029327,0.000821,60060.0,60059.0,0.37607937]
[1726660029559,0.000821,60060.0,60059.0,0.526217]
[1726660029787,0.000821,60060.0,60059.0,0.518217]
[1726660030025,0.000821,60060.0,60059.0,0.531217]
[1726660030266,0.000821,60060.0,60059.0,0.52144156]
[1726660030530,0.000821,60060.0,60059.0,0.50844156]
[1726660030785,0.000821,60060.0,60059.0,0.52044156]
[1726660031298,0.000821,60060.0,60059.0,0.50844156]
[1726660031543,0.000821,60060.0,60059.0,0.52144156]
[1726660033037,0.000821,60060.0,60059.0,0.34538789]
[1726660033277,0.000821,60060.0,60059.0,0.35738789]
[1726660033502,0.01356296,60060.0,60059.0,0.35738789]
[1726660033723,0.01356296,60060.0,60059.0,0.34538789]
[1726660033949,0.01356296,60060.0,60059.0,0.35838789]
[1726660034261,0.01356296,60060.0,60059.0,0.34538789]
[1726660034693,0.01356296,60060.0,60059.0,0.35738789]
[1726660035134,0.01356296,60060.0,60059.0,0.10392077]
[1726660035361,0.097621,60060.0,60059.0,0.10392077]
[1726660035587,0.11041136,60060.0,60059.0,0.09192077]
[1726660037200,0.11041136,60060.0,60059.0,0.10492077]
[1726660037418,0.11041136,60060.0,60059.0,0.09192077]
[1726660037863,0.11041136,60060.0,60059.0,0.10392077]
[1726660038089,0.11041136,60060.0,60059.0,0.09192077]
[1726660038522,0.11041136,60060.0,60059.0,0.10492077]
[1726660038757,0.11041136,60060.0,60059.0,0.09192077]
[1726660040424,0.11041136,60060.0,60059.0,0.10392077]
[1726660040662,0.11041136,60060.0,60059.0,0.09192077]
[1726660040894,0.11041136,60060.0,60059.0,0.10492077]
[1726660041337,0.11041136,60060.0,60059.0,0.09192077]
[1726660041780,0.11041136,60060.0,60059.0,0.10392077]
[1726660041994,0.11041136,60060.0,60059.0,0.09192077]
[1726660043585,0.11041136,60060.0,60059.0,0.10492077]
[1726660043809,0.11041136,60060.0,60059.0,0.09192077]
[1726660044268,0.11041136,60060.0,60059.0,0.10392077]
[1726660044513,0.11041136,60060.0,60059.0,0.09192077]
[1726660044951,0.11041136,60060.0,60059.0,0.10492077]
[1726660045167,0.11041136,60060.0,60059.0,0.09192077]
[1726660045612,0.11041136,60060.0,60059.0,0.10392077]
[1726660047002,0.11041136,60060.0,60059.0,0.09192077]
[1726660047194,0.11041136,60060.0,60059.0,0.10492077]
[1726660047625,0.11041136,60060.0,60059.0,0.09192077]
[1726660048068,0.11041136,60060.0,60059.0,0.10392077]
[1726660048312,0.11041136,60060.0,60059.0,0.09192077]
[1726660048754,0.11041136,60060.0,60059.0,0.10492077]
[1726660049768,0.11041136,60060.0,60059.0,0.013]
[1726660049769,0.37423518,60060.0,60059.0,0.013]
[1726660050098,0.0931,60059.0,60056.0,0.02992077]
[1726660050544,0.00787763,60058.0,60056.0,0.02992077]
[1726660050768,0.0981,60057.0,60056.0,0.02992077]
[1726660051946,0.01260979,60058.0,60057.0,0.03192077]
[1726660052873,0.01260979,60058.0,60057.0,0.09192077]
[1726660053765,0.000821,60060.0,60057.0,0.09192077]
[1726660053988,0.000821,60060.0,60059.0,0.15555513]
[1726660054208,0.000821,60060.0,60059.0,0.06192077]
[1726660055456,0.000821,60060.0,60059.0,0.06692077]
[1726660055905,0.000821,60060.0,60059.0,0.04692077]
[1726660058316,0.000821,60060.0,60059.0,0.07692077]
[1726660062582,0.000821,60060.0,60059.0,0.08025036]
[1726660062795,0.000821,60060.0,60059.0,0.07692077]
[1726660064239,0.000821,60060.0,60059.0,0.07192077]
[1726660064448,0.000821,60060.0,60059.0,0.08192077]
[1726660065783,0.000821,60060.0,60059.0,0.07192077]
[1726660066242,0.000821,60060.0,60059.0,0.08192077]
[1726660067660,0.097521,60060.0,60059.0,0.08192077]
[1726660068119,0.11015505,60060.0,60059.0,0.08192077]
[1726660069101,0.11015505,60060.0,60059.0,0.07192077]
[1726660069328,0.11015505,60060.0,60059.0,0.08492077]
[1726660070186,0.11015505,60060.0,60059.0,0.05492077]
[1726660070440,0.11015505,60060.0,60059.0,0.08492077]
[1726660071951,0.27320872,60060.0,60059.0,0.02492077]
[1726660072605,0.27320872,60060.0,60059.0,0.01192077]
[1726660073041,0.27320872,60060.0,60059.0,0.02292077]
[1726660074381,0.27320872,60060.0,60059.0,0.01192077]
[1726660074821,0.27320872,60060.0,60059.0,0.01692077]
[1726660075040,0.27320872,60060.0,60059.0,0.01192077]
[1726660075548,0.27320872,60060.0,60059.0,0.02292077]
[1726660075766,0.27320872,60060.0,60059.0,0.01192077]
[1726660076197,0.11015505,60060.0,60059.0,0.01692077]
[1726660077508,0.11015505,60060.0,60059.0,0.01192077]
[1726660078141,0.11015505,60060.0,60059.0,0.02292077]
[1726660079281,0.11015505,60060.0,60059.0,0.01192077]
[1726660080707,0.11015505,60060.0,60051.0,0.06176951]
[1726660080708,0.1181,60059.0,60051.0,0.06176951]
[1726660080969,0.1181,60059.0,60050.0,0.01274177]
[1726660080970,0.023,60057.0,60050.0,0.01274177]
[1726660081236,0.0951,60054.0,60052.0,0.01192077]
[1726660081481,0.16305367,60053.0,60052.0,0.01192077]
[1726660083170,0.16769531,60053.0,60052.0,0.01192077]
[1726660084561,0.16769531,60053.0,60052.0,0.01492077]
[1726660084771,0.17553709,60053.0,60052.0,0.01192077]
[1726660085208,0.17553709,60053.0,60052.0,0.01492077]
[1726660085439,0.17553709,60053.0,60052.0,0.01192077]
[1726660085922,0.17553709,60053.0,60052.0,0.01492077]
[1726660086144,0.17553709,60053.0,60052.0,0.01192077]
[1726660086810,0.01248342,60053.0,60052.0,0.01192077]
[1726660087062,0.01248342,60053.0,60052.0,0.07192077]
[1726660088280,0.01248342,60053.0,60052.0,0.07492077]
[1726660088493,0.01248342,60053.0,60052.0,0.07192077]
[1726660088718,0.01248342,60053.0,60052.0,0.07492077]
[1726660088938,0.01248342,60053.0,60052.0,0.07192077]
[1726660089397,0.01248342,60053.0,60052.0,0.07492077]
[1726660089584,0.01248342,60053.0,60052.0,0.07192077]
[1726660090052,0.01248342,60053.0,60052.0,0.07792077]
[1726660091429,0.01248342,60053.0,60052.0,0.07192077]
[1726660091875,0.01248342,60053.0,60052.0,0.07492077]
[1726660092975,0.01248342,60053.0,60052.0,0.07574177]
[1726660093876,0.01248342,60053.0,60052.0,0.04574177]
[1726660094546,0.01248342,60053.0,60052.0,0.07574177]
[1726660099330,0.01248342,60053.0,60052.0,0.07907177]
[1726660099546,0.000821,60060.0,60052.0,0.07907177]
[1726660099547,0.000821,60060.0,60058.0,0.03]
[1726660099980,0.01238787,60059.0,60058.0,0.03]
[1726660100206,0.000821,60060.0,60058.0,0.03]
[1726660100645,0.01238787,60059.0,60058.0,0.03]
[1726660100834,0.00452337,60059.0,60058.0,0.03]
[1726660101092,0.000821,60060.0,60058.0,0.03]
[1726660101599,0.01238787,60059.0,60058.0,0.03]
[1726660101814,0.00238787,60059.0,60058.0,0.03]
[1726660102029,0.000821,60060.0,60058.0,0.03]
[1726660102463,0.000821,60060.0,60059.0,0.03]
[1726660103292,0.00671981,60060.0,60059.0,0.03]
[1726660103768,0.00871981,60060.0,60059.0,0.03]
[1726660103995,0.00671981,60060.0,60059.0,0.03]
[1726660105990,0.00671981,60060.0,60059.0,0.034]
[1726660107381,0.00671981,60060.0,60059.0,0.03]
[1726660109451,0.01151832,60060.0,60059.0,0.03]
[1726660109940,0.01151832,60060.0,60059.0,0.031]
[1726660110614,0.10761832,60060.0,60059.0,0.001]
[1726660110837,0.10761832,60060.0,60057.0,0.04192077]
[1726660110838,0.27067199,60060.0,60057.0,0.01192077]
[1726660111059,0.16305367,60059.0,60055.0,0.01192077]
[1726660111276,0.16305367,60059.0,60054.0,0.01192077]
[1726660111277,0.023,60057.0,60054.0,0.01192077]
[1726660111514,0.16305367,60056.0,60053.0,0.01192077]
[1726660113275,0.00493162,60055.0,60053.0,0.01192077]
[1726660113503,0.16305367,60054.0,60053.0,0.01192077]
[1726660113730,0.16305367,60054.0,60053.0,0.01292077]
[1726660113954,0.16799212,60054.0,60053.0,0.01292077]
[1726660114393,0.16799212,60054.0,60053.0,0.01192077]
[1726660115048,0.17389104,60054.0,60053.0,0.01192077]
[1726660116135,0.17389104,60054.0,60053.0,0.01492077]
[1726660121336,0.17389104,60054.0,60053.0,0.003]
[1726660122506,0.17389104,60054.0,60053.0,0.01492077]
[1726660122991,0.17389104,60054.0,60052.0,0.01274177]
[1726660123276,0.17389104,60054.0,60053.0,0.01592077]
[1726660123999,0.17389104,60054.0,60053.0,0.01192077]
[1726660124501,0.17389104,60054.0,60053.0,0.01492077]
[1726660124752,0.17389104,60054.0,60053.0,0.01192077]
[1726660126205,0.17389104,60054.0,60053.0,0.01392077]
[1726660127952,0.17389104,60054.0,60053.0,0.01192077]
[1726660129445,0.17389104,60054.0,60053.0,0.01492077]
[1726660130679,0.17389104,60054.0,60053.0,0.003821]
[1726660130931,0.17389104,60054.0,60053.0,0.01574177]
[1726660136084,0.17389104,60054.0,60053.0,0.01274177]
[1726660136301,0.17389104,60054.0,60053.0,0.04474177]
[1726660136302,0.01083737,60054.0,60053.0,0.04474177]
[1726660136528,0.01083737,60054.0,60053.0,0.07474177]
[1726660136751,0.02776373,60059.0,60053.0,0.07474177]
[1726660137004,0.16305367,60058.0,60053.0,0.07474177]
[1726660137223,0.17386228,60058.0,60053.0,0.07474177]
[1726660137627,0.17386228,60058.0,60053.0,0.07274177]
[1726660137850,0.17386228,60058.0,60053.0,0.07774177]
[1726660139040,0.17386228,60058.0,60053.0,0.17855211]
[1726660139262,0.17386228,60058.0,60053.0,0.07274177]
[1726660140626,0.17386228,60058.0,60053.0,0.07374177]
[1726660147841,0.17386228,60058.0,60053.0,0.07274177]
[1726660150666,0.17586228,60058.0,60053.0,0.07274177]
[1726660156098,0.21591034,60057.0,60053.0,0.01274177]
[1726660156354,0.16794566,60056.0,60053.0,0.000821]
[1726660156570,0.17386691,60056.0,60053.0,0.000821]
[1726660157723,0.17386691,60056.0,60053.0,0.001821]
[1726660159428,0.10081034,60054.0,60053.0,0.001821]
[1726660159659,0.38957725,60054.0,60053.0,0.001821]
[1726660159891,0.38957725,60054.0,60053.0,0.000821]
[1726660160118,0.43958287,60054.0,60053.0,0.000821]
[1726660160557,0.38957725,60054.0,60053.0,0.000821]
[1726660161425,0.39057725,60054.0,60053.0,0.000821]
[1726660161841,0.38957725,60054.0,60053.0,0.000821]
[1726660163492,0.39057725,60054.0,60053.0,0.001821]
[1726660163937,0.46554012,60054.0,60053.0,0.001821]
[1726660164158,0.39057725,60054.0,60053.0,0.001821]
[1726660167014,0.38957725,60054.0,60053.0,0.000821]
[1726660167494,0.39057725,60054.0,60053.0,0.001821]
[1726660168989,0.19786691,60054.0,60053.0,0.001821]
[1726660170344,0.19686691,60054.0,60053.0,0.000821]
[1726660170556,0.19786691,60054.0,60053.0,0.001821]
[1726660171504,0.19786691,60054.0,60053.0,0.000821]
[1726660171505,0.19686691,60054.0,60053.0,0.000821]
[1726660171716,0.19786691,60054.0,60053.0,0.000821]
[1726660174925,0.19686691,60054.0,60053.0,0.000821]
[1726660175339,0.19786691,60054.0,60053.0,0.000821]
[1726660180342,0.22399211,60054.0,60053.0,0.000821]
[1726660182544,0.31839211,60054.0,60053.0,0.000821]
[1726660182805,0.32039211,60054.0,60053.0,0.000821]
[1726660183477,0.53020065,60054.0,60053.0,0.000821]
[1726660183698,0.4221287,60054.0,60053.0,0.000821]
[1726660183926,0.49603966,60054.0,60053.0,0.000821]
[1726660184390,0.4241287,60054.0,60053.0,0.000821]
[1726660184609,0.49602138,60054.0,60053.0,0.000821]
[1726660184825,0.49902138,60054.0,60053.0,0.001821]
[1726660185257,0.49602138,60054.0,60053.0,0.000821]
[1726660185498,0.49601818,60054.0,60053.0,0.000821]
[1726660186850,0.49601818,60054.0,60053.0,0.001821]
[1726660186851,0.52714566,60054.0,60053.0,0.001821]
[1726660187070,0.52214566,60054.0,60053.0,0.000821]
[1726660187511,0.52714566,60054.0,60053.0,0.001821]
[1726660187754,0.52214566,60054.0,60053.0,0.000821]
[1726660188255,0.52214566,60054.0,60053.0,0.001821]
[1726660188256,0.52714566,60054.0,60053.0,0.001821]
[1726660188507,0.52214566,60054.0,60053.0,0.000821]
[1726660189518,0.52213849,60054.0,60053.0,0.000821]
[1726660190033,0.52513849,60054.0,60053.0,0.001821]
[1726660190626,0.52213849,60054.0,60053.0,0.000821]
[1726660191077,0.52513849,60054.0,60053.0,0.001821]
[1726660191351,0.52213849,60054.0,60053.0,0.000821]
[1726660191616,0.52513849,60054.0,60053.0,0.001821]
[1726660191874,0.44825618,60054.0,60053.0,0.001821]
[1726660192071,0.44525618,60054.0,60053.0,0.000821]
[1726660192294,0.5103618,60054.0,60053.0,0.000821]
[1726660192519,0.43547362,60054.0,60053.0,0.000821]
[1726660192990,0.48539681,60054.0,60053.0,0.000821]
[1726660193455,0.48539681,60054.0,60053.0,0.001821]
[1726660193456,0.48839681,60054.0,60053.0,0.001821]
[1726660194368,0.48839681,60054.0,60053.0,0.000821]
[1726660194369,0.48540011,60054.0,60053.0,0.000821]
[1726660194814,0.48840011,60054.0,60053.0,0.001821]
[1726660195035,0.43847362,60054.0,60053.0,0.001821]
[1726660195252,0.51536336,60054.0,60053.0,0.001821]
[1726660196827,0.51336336,60054.0,60053.0,0.001821]
[1726660198063,0.51536336,60054.0,60053.0,0.001821]
[1726660198335,0.44047362,60054.0,60053.0,0.001821]
[1726660199547,0.5403266,60054.0,60053.0,0.001821]
[1726660200040,0.44047362,60054.0,60053.0,0.001821]
[1726660200788,0.43747362,60054.0,60053.0,0.000821]
[1726660201026,0.43747362,60054.0,60053.0,0.001821]
[1726660201027,0.41434614,60054.0,60053.0,0.001821]
[1726660201291,0.41134614,60054.0,60053.0,0.000821]
[1726660201535,0.41134614,60054.0,60053.0,0.001821]
[1726660201787,0.41434614,60054.0,60053.0,0.001821]
[1726660202266,0.53516251,60054.0,60053.0,0.001821]
[1726660202722,0.53216251,60054.0,60053.0,0.000821]
[1726660203173,0.41134614,60054.0,60053.0,0.000821]
[1726660204356,0.40934614,60054.0,60053.0,0.000821]
[1726660204585,0.41575648,60054.0,60053.0,0.000821]
[1726660204804,0.52258549,60054.0,60053.0,0.000821]
[1726660205026,0.41575648,60054.0,60053.0,0.000821]
[1726660206137,0.41875648,60054.0,60053.0,0.001821]
[1726660206576,0.41575648,60054.0,60053.0,0.000821]
[1726660207009,0.41875648,60054.0,60053.0,0.001821]
[1726660208124,0.54367522,60054.0,60053.0,0.001821]
[1726660208669,0.54567522,60054.0,60053.0,0.001821]
[1726660208899,0.42075648,60054.0,60053.0,0.001821]
[1726660209135,0.54567919,60054.0,60053.0,0.001821]
[1726660210063,0.51305648,60054.0,60053.0,0.001821]
[1726660210544,0.61305648,60054.0,60053.0,0.001821]
[1726660210760,0.61005648,60054.0,60053.0,0.000821]
[1726660210981,0.70103849,60054.0,60053.0,0.001821]
[1726660211438,0.69803849,60054.0,60053.0,0.000821]
[1726660212842,0.70103849,60054.0,60053.0,0.001821]
[1726660214425,0.85091534,60054.0,60053.0,0.001821]
[1726660214904,0.70103849,60054.0,60053.0,0.001821]
[1726660215150,0.61305648,60054.0,60053.0,0.001821]